[Event "FIN-ch 2018"]
[Site "Helsinki"]
[Date "2018.06.12"]
[Round "2"]
[White "Sipila, Vilka"]
[Black "Luukkonen, Tommi"]
[Result "1-0"]
[ECO "A33"]
[WhiteElo "2383"]
[BlackElo "2349"]
[Annotator "NA"]
[PlyCount "91"]
[EventDate "2018.06.13"]
[EventType "tourn"]
[EventCountry "FIN"]
[SourceTitle "playchess.com"]
[Source "ChessBase"]
[SourceQuality "1"]
[TimeControl "40/5400+30:1800+30"]

1. Nf3 {[%emt 0:00:00]} c5 {[%emt 0:00:59]} 2. c4 {[%emt 0:00:00]} Nc6 {[%emt 0:00:15]} 3. d4 {[%emt 0:00:00]} cxd4 {[%emt 0:00:08]} 4. Nxd4 {[%emt 0:00:00]} Nf6 {[%emt 0:01:37]} 5. Nc3 {[%emt 0:00:08]} e6 {[%emt 0:00:39]} 6. a3 {[%emt 0:00:08]} d5 {[%emt 0:01:29]} 7. cxd5 {[%emt 0:11:55]} exd5 {[%emt 0:00:08]} 8. g3 {[%emt 0:00:53]} Be7 {[%emt 0:01:19]} 9. Bg2 {[%emt 0:00:21]} O-O $14 {[%emt 0:00:20] LiveBook: 8 Games} 10. O-O {[%emt 0:00:15]} Bg4 {[%emt 0:09:20]} 11. h3 {[%emt 0:01:45]} Be6 {[%emt 0:00:28]} 12. b3 {[%emt 0:08:23]} Rc8 {[%emt 0:12:44]} 13. Bb2 {[%emt 0:01:59]} Qb6 {[%emt 0:06:39]} 14. Na4 {[%emt 0:08:09]} Qa6 {[%emt 0:00:33]} 15. Rc1 {[%emt 0:07:11]} Nxd4 {[%emt 0:09:26]} 16. Qxd4 {[%emt 0:01:02]} Qxe2 {[%emt 0:04:45]} 17. Qxa7 {[%emt 0:00:25]} Rxc1 {[%emt 0:05:40]} 18. Rxc1 {[%emt 0:00:46]} Ne4 {[%emt 0:01:41]} 19. Qd4 {[%emt 0:29:57]} Bf6 {[%emt 0:00:17]} 20. Qe3 {[%emt 0:00:16]} Nxg3 {[%emt 0:02:17]} 21. Qxg3 {[%emt 0:05:27]} Bxb2 {[%emt 0:00:07]} 22. Nxb2 {[%emt 0:00:43]} Qxb2 {[%emt 0:00:06]} 23. Rc7 {[%emt 0:00:19]} b5 {[%emt 0:07:18]} 24. Rb7 {[%emt 0:01:20]} Qxa3 {[%emt 0:02:28]} 25. Rxb5 {[%emt 0:00:14]} Qa1+ {[%emt 0:03:52]} 26. Kh2 {[%emt 0:00:23]} Qa8 {[%emt 0:01:51]} 27. b4 {[%emt 0:00:34]} Qd8 {[%emt 0:02:17]} 28. Qe5 {[%emt 0:02:09]} Qd7 {[%emt 0:00:42]} 29. Rc5 {[%emt 0:00:48]} Rd8 {[%emt 0:01:42]} 30. Qd4 {[%emt 0:01:03]} f6 {[%emt 0:01:49]} 31. Kg1 {[%emt 0:00:22]} Qd6 {[%emt 0:01:04]} 32. b5 {[%emt 0:00:46]} Qb6 {[%emt 0:03:26]} 33. Qb4 {[%emt 0:00:26]} Bf7 {[%emt 0:00:26]} 34. Rc6 {[%emt 0:01:25]} Qb7 {[%emt 0:01:14]} 35. Qc5 {[%emt 0:00:33]} Qd7 {[%emt 0:08:35]} 36. b6 {[%emt 0:01:43]} d4 {[%emt 0:01:18]} 37. Rc7 {[%emt 0:00:35]} Qe8 {[%emt 0:00:23]} 38. Re7 {[%emt 0:02:48]} Qf8 {[%emt 0:02:49]} 39. Qc7 {[%emt 0:00:13]} Bg6 {[%emt 0:00:57]} 40. Rxg7+ {[%emt 0:00:00]} Kh8 {[%emt 0:00:05]} 41. Rd7 {[%emt 0:10:21]} Rc8 {[%emt 0:13:28]} 42. Rxd4 {[%emt 0:00:51]} Bf5 {[%emt 0:04:19]} 43. Qd6 {[%emt 0:03:36]} Qg7 {[%emt 0:00:45]} 44. b7 {[%emt 0:00:27]} Rg8 {[%emt 0:00:47]} 45. Qg3 {[%emt 0:01:23]} Qf8 {[%emt 0:00:38]} 46. Qxg8+ {[%emt 0:04:33]} 1-0

[Event "FIN-ch 2018"]
[Site "Helsinki"]
[Date "2018.06.13"]
[Round "3"]
[White "Luukkonen, Tommi"]
[Black "Keinanen, Toivo"]
[Result "1-0"]
[ECO "D31"]
[WhiteElo "2349"]
[BlackElo "2341"]
[Annotator "NA"]
[PlyCount "90"]
[EventDate "2018.06.13"]
[EventType "tourn"]
[EventCountry "FIN"]
[SourceTitle "playchess.com"]
[Source "ChessBase"]
[SourceQuality "1"]
[TimeControl "40/5400+30:1800+30"]

1. d4 {[%emt 0:00:00]} d5 {[%emt 0:00:37]} 2. c4 {[%emt 0:00:00]} e6 {[%emt 0:01:09]} 3. Nc3 {[%emt 0:00:00]} Be7 {[%emt 0:00:39]} 4. cxd5 {[%emt 0:00:00]} exd5 {[%emt 0:00:06]} 5. Bf4 {[%emt 0:00:00]} c6 {[%emt 0:00:57]} 6. e3 {[%emt 0:00:01]} Bf5 {[%emt 0:00:50]} 7. g4 {[%emt 0:00:06]} Be6 {[%emt 0:00:41]} 8. Qb3 {[%emt 0:00:52]} Qb6 {[%emt 0:04:56]} 9. f3 {[%emt 0:00:48]} Nd7 {[%emt 0:08:34]} 10. h4 {[%emt 0:00:42]} Ngf6 {[%emt 0:01:52]} 11. Bd3 {[%emt 0:02:53]} c5 {[%emt 0:10:13]} 12. Nge2 {[%emt 0:05:28]} O-O {[%emt 0:03:29]} 13. h5 {[%emt 0:04:50]} cxd4 {[%emt 0:07:23]} 14. Qxb6 {[%emt 0:01:10]} Nxb6 {[%emt 0:02:32]} 15. Nxd4 {[%emt 0:00:12]} Nc4 {[%emt 0:03:41]} 16. Bxc4 {[%emt 0:11:44]} dxc4 {[%emt 0:00:31]} 17. h6 {[%emt 0:00:19]} g6 {[%emt 0:04:09]} 18. Bg5 {[%emt 0:01:43]} Rfd8 {[%emt 0:05:18]} 19. O-O-O {[%emt 0:01:31]} Kf8 {[%emt 0:01:26]} 20. e4 {[%emt 0:01:47]} Nd7 {[%emt 0:01:37]} 21. Nxe6+ {[%emt 0:04:33]} fxe6 {[%emt 0:00:08]} 22. Be3 {[%emt 0:03:04]} Nc5 {[%emt 0:04:38]} 23. Kc2 {[%emt 0:03:06]} a6 {[%emt 0:02:41]} 24. f4 {[%emt 0:02:28]} Nd3 {[%emt 0:01:51]} 25. Rdf1 {[%emt 0:02:16]} Nb4+ {[%emt 0:01:31]} 26. Kb1 {[%emt 0:00:46]} Rd3 {[%emt 0:00:44]} 27. Bc1 {[%emt 0:02:35]} Kf7 {[%emt 0:01:23]} 28. f5 {[%emt 0:03:44]} gxf5 {[%emt 0:02:41]} 29. gxf5 {[%emt 0:02:05]} e5 {[%emt 0:04:11]} 30. Rhg1 {[%emt 0:02:39]} Bf8 {[%emt 0:05:12]} 31. f6 {[%emt 0:01:59]} Rd6 {[%emt 0:09:24]} 32. a3 {[%emt 0:02:34]} Nd3 {[%emt 0:01:02]} 33. Nd5 {[%emt 0:00:39]} Rdd8 {[%emt 0:06:05]} 34. Be3 {[%emt 0:07:55]} b5 {[%emt 0:00:29]} 35. Rf5 {[%emt 0:01:44]} Nf4 {[%emt 0:01:36]} 36. Bxf4 {[%emt 0:04:52]} exf4 {[%emt 0:00:05]} 37. Rxf4 {[%emt 0:00:52]} Rac8 {[%emt 0:01:19]} 38. Rg7+ {[%emt 0:05:07]} Bxg7 {[%emt 0:00:58]} 39. fxg7+ {[%emt 0:00:07]} Ke6 {[%emt 0:01:00]} 40. Rf6+ {[%emt 0:00:00]} Ke5 {[%emt 0:00:59]} 41. Rxa6 {[%emt 0:01:51]} Kxe4 {[%emt 0:03:52]} 42. Ne7 {[%emt 0:02:45]} Rd1+ {[%emt 0:05:19]} 43. Ka2 {[%emt 0:00:52]} c3 {[%emt 0:00:26]} 44. Nxc8 {[%emt 0:01:06]} cxb2 {[%emt 0:00:22]} 45. Kxb2 {[%emt 0:00:11]} Kd5 1-0

[Event "FIN-ch 2018"]
[Site "Helsinki"]
[Date "2018.06.13"]
[Round "3"]
[White "Niemi, Kalle"]
[Black "Jarvenpaa, Jari"]
[Result "1-0"]
[ECO "C41"]
[WhiteElo "2336"]
[BlackElo "2310"]
[Annotator "NA"]
[PlyCount "73"]
[EventDate "2018.06.13"]
[EventType "tourn"]
[EventCountry "FIN"]
[SourceTitle "playchess.com"]
[Source "ChessBase"]
[SourceQuality "1"]
[TimeControl "40/5400+30:1800+30"]

1. e4 {[%emt 0:00:00]} e5 {[%emt 0:00:36]} 2. Nf3 {[%emt 0:00:49]} d6 {[%emt 0:00:20]} 3. d4 {[%emt 0:00:58]} exd4 {[%emt 0:00:05]} 4. Nxd4 {[%emt 0:00:50]} Nf6 {[%emt 0:00:08]} 5. Nc3 {[%emt 0:01:04]} Be7 {[%emt 0:00:09]} 6. Be2 {[%emt 0:00:52]} O-O {[%emt 0:00:37]} 7. Bf4 {[%emt 0:00:39]} Re8 {[%emt 0:03:06]} 8. Qd2 {[%emt 0:00:55]} Bf8 {[%emt 0:04:35]} 9. f3 {[%emt 0:01:14]} Nc6 {[%emt 0:04:51]} 10. O-O-O {[%emt 0:02:09]} Nxd4 {[%emt 0:05:44]} 11. Qxd4 {[%emt 0:00:08]} Be6 {[%emt 0:03:07]} 12. Rhe1 {[%emt 0:01:41]} Nd7 {[%emt 0:04:28]} 13. g4 {[%emt 0:02:16]} Be7 {[%emt 0:03:11]} 14. Kb1 {[%emt 0:05:22]} Bg5 {[%emt 0:09:37]} 15. Qd2 {[%emt 0:03:33]} Bxf4 {[%emt 0:12:20]} 16. Qxf4 {[%emt 0:00:06]} Qh4 {[%emt 0:04:25]} 17. Qe3 {[%emt 0:12:44]} c6 {[%emt 0:06:24]} 18. Rg1 {[%emt 0:07:59]} d5 {[%emt 0:02:15]} 19. f4 {[%emt 0:04:16]} Nb6 {[%emt 0:06:57]} 20. e5 {[%emt 0:04:58]} Qe7 {[%emt 0:01:47]} 21. Bd3 {[%emt 0:02:57]} Qh4 {[%emt 0:04:25]} 22. Rg3 {[%emt 0:03:11]} d4 {[%emt 0:05:11]} 23. Qxd4 {[%emt 0:01:32]} Rad8 {[%emt 0:02:13]} 24. Qg1 {[%emt 0:01:13]} Nd5 {[%emt 0:01:30]} 25. Nxd5 {[%emt 0:02:03]} Bxd5 {[%emt 0:00:51]} 26. Qe3 {[%emt 0:04:30]} Qe7 {[%emt 0:01:56]} 27. Rh3 {[%emt 0:01:23]} h6 {[%emt 0:02:20]} 28. Rg1 {[%emt 0:01:31]} Qb4 {[%emt 0:02:21]} 29. g5 {[%emt 0:02:04]} hxg5 {[%emt 0:02:26]} 30. Rxg5 {[%emt 0:02:25]} Kf8 {[%emt 0:04:00]} 31. a3 {[%emt 0:02:40]} Qb6 {[%emt 0:00:29]} 32. Qg3 {[%emt 0:01:10]} Ke7 {[%emt 0:01:25]} 33. Rxg7 {[%emt 0:01:59]} Kd7 {[%emt 0:01:11]} 34. c4 {[%emt 0:01:33]} Be6 {[%emt 0:00:36]} 35. f5 {[%emt 0:00:37]} Kc8 {[%emt 0:01:45]} 36. fxe6 {[%emt 0:00:17]} fxe6 {[%emt 0:00:29]} 37. Rhh7 {[%emt 0:01:30]} 1-0

[Event "FIN-ch 2018"]
[Site "Helsinki"]
[Date "2018.06.14"]
[Round "4"]
[White "Keinanen, Toivo"]
[Black "Jarvenpaa, Jari"]
[Result "1-0"]
[ECO "C10"]
[WhiteElo "2341"]
[BlackElo "2310"]
[Annotator "NA"]
[PlyCount "133"]
[EventDate "2018.06.13"]
[EventType "tourn"]
[EventCountry "FIN"]
[SourceTitle "playchess.com"]
[Source "ChessBase"]
[SourceQuality "1"]
[TimeControl "40/5400+30:1800+30"]

1. d4 {[%emt 0:00:00]} e6 {[%emt 0:00:16]} 2. e4 {[%emt 0:00:00]} d5 {[%emt 0:00:08]} 3. Nd2 {[%emt 0:00:01]} dxe4 {[%emt 0:00:10]} 4. Nxe4 {[%emt 0:00:07]} Nd7 {[%emt 0:00:08]} 5. g3 {[%emt 0:03:04]} Ngf6 {[%emt 0:02:30]} 6. Nxf6+ {[%emt 0:01:00]} Nxf6 {[%emt 0:00:40]} 7. Nf3 {[%emt 0:03:16]} c5 {[%emt 0:06:02]} 8. Bg2 {[%emt 0:03:31]} cxd4 {[%emt 0:03:21] C10: Französische Verteidigung (Rubinstein-Variante)} 9. Qxd4 {[%emt 0:02:57]} Qxd4 {[%emt 0:05:50]} 10. Nxd4 {[%emt 0:00:04]} Bc5 {[%emt 0:09:42]} 11. Nb3 {[%emt 0:13:13]} Bd6 {[%emt 0:03:42]} 12. O-O {[%emt 0:12:58]} Ke7 {[%emt 0:13:02]} 13. Na5 {[%emt 0:03:07]} Rb8 {[%emt 0:24:05] [#]} 14. Nc4 $146 {[%emt 0:03:27]} ({Vorgänger:} 14. Be3 Bc7 15. Bxa7 Ra8 16. Bc5+ {1-0 (29) Palac,M (2589)-Neubauer,M (2304) Baden 1999}) 14... Bc7 $1 {[%emt 0:02:40]} 15. b3 {[%emt 0:00:13]} b5 {[%emt 0:01:18]} 16. Ba3+ {[%emt 0:04:15]} b4 {[%emt 0:00:20]} 17. Bb2 {[%emt 0:00:01]} Ba6 {[%emt 0:02:29]} 18. a3 {[%emt 0:04:32]} Bxc4 {[%emt 0:00:24]} 19. bxc4 {[%emt 0:00:33]} b3 {[%emt 0:03:48]} 20. Bd4 {[%emt 0:05:07]} bxc2 {[%emt 0:05:08]} 21. Bxa7 {[%emt 0:02:15]} Rb3 {[%emt 0:03:13]} 22. Rfc1 {[%emt 0:01:57]} Rc8 {[%emt 0:05:40]} 23. Rxc2 $11 {[%emt 0:09:43]} Be5 {[%emt 0:00:07]} 24. Raa2 {[%emt 0:00:38]} Rb1+ {[%emt 0:01:09]} 25. Bf1 {[%emt 0:00:39]} Rc7 {[%emt 0:02:54]} 26. Be3 {[%emt 0:01:31]} Ng4 {[%emt 0:00:37]} 27. Bd2 {[%emt 0:02:18]} Nxh2 {[%emt 0:03:29]} 28. Kxh2 {[%emt 0:01:10]} Rxf1 {[%emt 0:00:06]} 29. Be3 {[%emt 0:03:43]} Rd1 {[%emt 0:00:54]} 30. Bb6 {[%emt 0:04:32]} Rc6 {[%emt 0:00:28]} 31. c5 {[%emt 0:00:00]} Bd4 {[%emt 0:00:46]} 32. a4 {[%emt 0:01:35]} Kd7 {[%emt 0:00:49]} 33. a5 {[%emt 0:01:36]} Rc8 {[%emt 0:00:01]} 34. c6+ {[%emt 0:06:17]} Rxc6 {[%emt 0:00:26]} 35. Rxc6 {[%emt 0:00:54]} Kxc6 {[%emt 0:00:09]} 36. Rc2+ {[%emt 0:00:01]} Kb5 {[%emt 0:00:49]} 37. Rc7 {[%emt 0:00:32]} Bxb6 {[%emt 0:00:32]} 38. axb6 {[%emt 0:00:02]} Kxb6 {[%emt 0:00:14]} 39. Rxf7 {[%emt 0:00:03]} Rd5 {[%emt 0:01:04]} 40. Rxg7 {[%emt 0:00:00]} Rh5+ {[%emt 0:00:29]} 41. Kg2 {[%emt 0:02:29]} Kc6 {[%emt 0:05:38]} 42. Kf3 {[%emt 0:04:25]} Rf5+ {[%emt 0:12:46]} 43. Ke3 {[%emt 0:04:36]} Re5+ {[%emt 0:00:12]} 44. Kd4 {[%emt 0:03:46]} Rh5 {[%emt 0:08:26]} 45. Ke4 {[%emt 0:14:10]} Kd6 {[%emt 0:00:27]} 46. f4 {[%emt 0:01:48]} Rh1 {[%emt 0:00:36]} 47. Ra7 {[%emt 0:01:39]} Re1+ {[%emt 0:02:51]} 48. Kf3 {[%emt 0:00:34]} Rh1 {[%emt 0:00:02]} 49. Kg4 {[%emt 0:00:33]} Rh6 {[%emt 0:02:29]} 50. Rg7 {[%emt 0:01:12]} Rh1 {[%emt 0:01:04]} 51. Kg5 {[%emt 0:00:49]} h5 {[%emt 0:01:04]} 52. Kf6 {[%emt 0:03:21]} Rh3 {[%emt 0:00:36]} 53. Rg8 {[%emt 0:00:44]} Kd7 {[%emt 0:00:22]} 54. Ke5 {[%emt 0:01:00]} h4 {[%emt 0:00:39]} 55. Rg7+ {[%emt 0:00:48]} Kd8 {[%emt 0:00:14]} 56. g4 {[%emt 0:01:13]} Re3+ {[%emt 0:00:34]} 57. Kf6 {[%emt 0:00:07]} h3 {[%emt 0:00:35]} 58. Rh7 {[%emt 0:00:25]} Re4 {[%emt 0:00:36]} 59. g5 {[%emt 0:00:53]} Rxf4+ {[%emt 0:00:28]} 60. Kxe6 {[%emt 0:00:04]} Ke8 {[%emt 0:00:39]} 61. Rh8+ {[%emt 0:00:29]} Rf8 {[%emt 0:00:02]} 62. Rxh3 {[%emt 0:00:08]} Rf1 {[%emt 0:00:30]} 63. Rh8+ {[%emt 0:00:30]} Rf8 {[%emt 0:00:02]} 64. Rxf8+ {[%emt 0:01:03]} Kxf8 {[%emt 0:00:00]} 65. Kf6 {[%emt 0:00:15]} Kg8 {[%emt 0:00:09]} 66. Kg6 {[%emt 0:00:06]} Kh8 {[%emt 0:00:14]} 67. Kf7 {[%emt 0:00:55]} 1-0

[Event "FIN-ch 2018"]
[Site "Helsinki"]
[Date "2018.06.14"]
[Round "4"]
[White "Nyysti, Sampsa"]
[Black "Niemi, Kalle"]
[Result "1/2-1/2"]
[ECO "B30"]
[WhiteElo "2322"]
[BlackElo "2336"]
[Annotator "NA"]
[PlyCount "45"]
[EventDate "2018.06.13"]
[EventType "tourn"]
[EventCountry "FIN"]
[SourceTitle "playchess.com"]
[Source "ChessBase"]
[SourceQuality "1"]
[TimeControl "40/5400+30:1800+30"]

1. e4 {[%emt 0:00:00]} c5 {[%emt 0:00:06]} 2. Nf3 {[%emt 0:00:07]} Nc6 {[%emt 0:00:08]} 3. Bb5 {[%emt 0:00:07]} d6 {[%emt 0:00:29]} 4. O-O {[%emt 0:01:07]} Bd7 {[%emt 0:00:07]} 5. Re1 {[%emt 0:00:44] LiveBook: 2922 Games} Nf6 {[%emt 0:00:25]} 6. c3 {[%emt 0:02:13]} a6 {[%emt 0:00:13]} 7. Bf1 {[%emt 0:01:17]} Bg4 {[%emt 0:00:32]} 8. h3 {[%emt 0:01:27]} Bxf3 {[%emt 0:00:20]} 9. Qxf3 {[%emt 0:00:07]} e6 {[%emt 0:00:12] B51: Sicilian: Moscow Variation (3 Bb5+) without 3...Bd7} 10. d3 {[%emt 0:00:39]} Be7 {[%emt 0:00:25]} 11. Be3 {[%emt 0:04:34]} O-O {[%emt 0:05:03]} 12. Nd2 {[%emt 0:05:46]} d5 {[%emt 0:01:21]} 13. exd5 {[%emt 0:00:16]} Nxd5 {[%emt 0:01:27] [#]} 14. Nb3 $146 {[%emt 0:04:10]} ({Predecessor:} 14. Rad1 Rc8 15. Nb3 Nxe3 16. Qxe3 Qb6 17. g3 {½-½ (25) Kravtsiv,M (2672)-Andriasian,Z (2585) Riadh 2017}) 14... Nxe3 {[%emt 0:05:00]} 15. Qxe3 {[%emt 0:00:39]} Qd5 {[%emt 0:03:00]} 16. g3 {[%emt 0:01:45]} Rfd8 {[%emt 0:04:49]} 17. Rad1 {[%emt 0:02:36]} Rac8 {[%emt 0:02:43]} 18. Bg2 {[%emt 0:18:34]} Qd6 {[%emt 0:00:34]} 19. Bf3 {[%emt 0:00:15]} b6 {[%emt 0:05:14]} 20. d4 {[%emt 0:09:26]} cxd4 $1 {[%emt 0:00:18]} 21. Nxd4 $11 {[%emt 0:00:02]} Nxd4 {[%emt 0:00:25]} 22. Rxd4 {[%emt 0:00:12]} Qc7 {[%emt 0:01:05]} 23. Kg2 {[%emt 0:09:14]} 1/2-1/2

[Event "FIN-ch 2018"]
[Site "Helsinki"]
[Date "2018.06.14"]
[Round "4"]
[White "Walta, Paivi"]
[Black "Ristoja, Aulikki"]
[Result "1-0"]
[ECO "B01"]
[WhiteElo "1634"]
[BlackElo "1565"]
[Annotator "NA"]
[PlyCount "59"]
[EventDate "2018.06.13"]
[EventType "tourn"]
[EventCountry "FIN"]
[SourceTitle "playchess.com"]
[Source "ChessBase"]
[SourceQuality "1"]
[TimeControl "40/5400+30:1800+30"]

1. e4 {[%emt 0:00:00]} d5 {[%emt 0:00:26]} 2. exd5 {[%emt 0:00:00]} Qxd5 {[%emt 0:00:07]} 3. Nc3 {[%emt 0:00:00]} Qa5 {[%emt 0:00:14]} 4. d4 {[%emt 0:00:12]} c6 {[%emt 0:00:39]} 5. Nf3 {[%emt 0:00:28]} Bg4 {[%emt 0:00:26]} 6. h3 {[%emt 0:00:21]} Bxf3 {[%emt 0:00:20] LiveBook: 15 Games} 7. Qxf3 $16 {[%emt 0:00:15]} ({Viel schlechter ist} 7. gxf3 Nd7 $11) 7... e6 {[%emt 0:01:24]} 8. Bc4 Nf6 {[%emt 0:01:27]} 9. O-O {[%emt 0:02:18]} Qc7 {[%emt 0:02:00]} 10. Re1 {[%emt 0:02:48]} Be7 {[%emt 0:02:48]} 11. Bd2 {[%emt 0:04:47]} Nbd7 {[%emt 0:02:01]} 12. Rad1 {[%emt 0:01:59]} h6 {[%emt 0:04:42]} 13. a3 {[%emt 0:01:29]} g5 {[%emt 0:03:38]} 14. b4 {[%emt 0:05:10]} a6 {[%emt 0:01:00]} 15. Ne2 {[%emt 0:00:46]} O-O-O {[%emt 0:03:38]} 16. Bd3 {[%emt 0:01:27]} g4 {[%emt 0:02:24]} 17. hxg4 {[%emt 0:00:18]} Rdg8 {[%emt 0:00:56]} 18. Bf4 {[%emt 0:04:53]} Bd6 {[%emt 0:01:13]} 19. c4 {[%emt 0:00:52]} Rxg4 {[%emt 0:01:17]} 20. Bxd6 {[%emt 0:00:34]} Qxd6 {[%emt 0:00:18]} 21. g3 {[%emt 0:00:43]} Rhg8 {[%emt 0:01:42]} 22. d5 {[%emt 0:06:28]} Ne5 {[%emt 0:02:46]} 23. Qxf6 {[%emt 0:02:07]} Rxg3+ {[%emt 0:01:46]} 24. Nxg3 {[%emt 0:01:07]} Ng4 {[%emt 0:03:57]} 25. Qxf7 {[%emt 0:01:27]} Rg5 {[%emt 0:01:14]} 26. Qxe6+ {[%emt 0:01:11]} Qxe6 {[%emt 0:00:02]} 27. dxe6 {[%emt 0:00:24]} Nf6 {[%emt 0:00:29]} 28. e7 {[%emt 0:00:13]} Rg8 {[%emt 0:00:32]} 29. Bf5+ {[%emt 0:00:25]} Kc7 {[%emt 0:00:09]} 30. Re6 {[%emt 0:01:26]} 1-0

[Event "FIN-ch 2018"]
[Site "Helsinki"]
[Date "2018.06.15"]
[Round "5"]
[White "Niemi, Kalle"]
[Black "Koykka, Pekka"]
[Result "1/2-1/2"]
[ECO "A04"]
[WhiteElo "2336"]
[BlackElo "2345"]
[Annotator "NA"]
[PlyCount "93"]
[EventDate "2018.06.13"]
[EventType "tourn"]
[EventCountry "FIN"]
[SourceTitle "playchess.com"]
[Source "ChessBase"]
[SourceQuality "1"]
[TimeControl "40/5400+30:1800+30"]

1. Nf3 {[%emt 0:00:00]} f5 {[%emt 0:00:21]} 2. d3 {[%emt 0:00:00]} d6 {[%emt 0:00:16]} 3. e4 {[%emt 0:00:00]} e5 {[%emt 0:00:19]} 4. Nc3 {[%emt 0:00:32]} Nf6 {[%emt 0:00:44]} 5. exf5 {[%emt 0:00:29]} Bxf5 {[%emt 0:00:24]} 6. d4 {[%emt 0:00:30]} Nc6 {[%emt 0:24:12]} 7. Bb5 {[%emt 0:06:35]} exd4 {[%emt 0:05:20]} 8. Nxd4 {[%emt 0:02:02]} Bd7 {[%emt 0:02:48]} 9. O-O {[%emt 0:03:34]} Nxd4 {[%emt 0:08:28]} 10. Qxd4 {[%emt 0:02:03]} Be7 {[%emt 0:23:51]} 11. Bc4 {[%emt 0:04:46]} c6 {[%emt 0:04:50]} 12. Bg5 {[%emt 0:09:50]} Qb6 {[%emt 0:03:59]} 13. Bxf6 {[%emt 0:04:27]} gxf6 {[%emt 0:03:27]} 14. Qe4 {[%emt 0:01:10]} f5 {[%emt 0:00:32]} 15. Qe2 {[%emt 0:02:16]} Kd8 {[%emt 0:01:22]} 16. Rad1 {[%emt 0:07:03]} Re8 {[%emt 0:01:09]} 17. Bf7 {[%emt 0:01:27]} Rf8 {[%emt 0:00:23]} 18. Be6 {[%emt 0:05:14]} Rf6 {[%emt 0:04:26]} 19. Bxd7 {[%emt 0:00:48]} Kxd7 {[%emt 0:00:02]} 20. Rfe1 {[%emt 0:02:14]} Re8 {[%emt 0:00:34]} 21. Rd3 {[%emt 0:00:52]} Qd8 {[%emt 0:02:43]} 22. Re3 {[%emt 0:01:11]} Rf7 {[%emt 0:00:45]} 23. b4 {[%emt 0:01:35]} Ref8 {[%emt 0:02:09]} 24. b5 {[%emt 0:08:39]} Bg5 {[%emt 0:01:29]} 25. bxc6+ {[%emt 0:03:12]} bxc6 {[%emt 0:00:02]} 26. Re6 {[%emt 0:02:44]} Re7 {[%emt 0:01:19]} 27. Qc4 {[%emt 0:02:47]} Rfe8 {[%emt 0:00:55]} 28. Rxe7+ {[%emt 0:11:37]} Rxe7 {[%emt 0:00:03]} 29. Rb1 {[%emt 0:00:30]} Qc7 {[%emt 0:01:43]} 30. h4 {[%emt 0:02:27]} Bf6 {[%emt 0:00:32]} 31. Ne2 {[%emt 0:00:50]} d5 {[%emt 0:01:01]} 32. Qa6 {[%emt 0:02:09]} Ke8 {[%emt 0:01:26]} 33. Ng3 {[%emt 0:00:56]} Qd7 {[%emt 0:04:54]} 34. Qd3 {[%emt 0:01:31]} Qe6 {[%emt 0:00:30]} 35. Nxf5 {[%emt 0:01:02]} Rd7 {[%emt 0:00:10]} 36. Nd4 {[%emt 0:02:31]} Qe4 {[%emt 0:00:36]} 37. Nxc6 {[%emt 0:03:03]} Qxd3 {[%emt 0:00:37]} 38. cxd3 {[%emt 0:00:07]} Rc7 {[%emt 0:00:15]} 39. Nb4 {[%emt 0:01:15]} Rc5 {[%emt 0:00:27]} 40. g3 {[%emt 0:00:00]} a5 {[%emt 0:00:25]} 41. Na6 {[%emt 0:05:38]} Rc6 {[%emt 0:11:56]} 42. Nb8 {[%emt 0:01:36]} Rc2 {[%emt 0:01:43]} 43. Rb5 {[%emt 0:04:43]} Bd4 {[%emt 0:02:23]} 44. Rxa5 {[%emt 0:07:55]} Bxf2+ {[%emt 0:00:17]} 45. Kf1 {[%emt 0:00:22]} Bxg3 {[%emt 0:00:30]} 46. Na6 {[%emt 0:01:06]} Bxh4 {[%emt 0:05:21]} 47. Rxd5 {[%emt 0:01:19]} 1/2-1/2

[Event "FIN-ch 2018"]
[Site "Helsinki"]
[Date "2018.06.15"]
[Round "5"]
[White "Jarvenpaa, Jari"]
[Black "Nyysti, Sampsa"]
[Result "1/2-1/2"]
[ECO "A46"]
[WhiteElo "2310"]
[BlackElo "2322"]
[Annotator "NA"]
[PlyCount "120"]
[EventDate "2018.06.13"]
[EventType "tourn"]
[EventCountry "FIN"]
[SourceTitle "playchess.com"]
[Source "ChessBase"]
[SourceQuality "1"]
[TimeControl "40/5400+30:1800+30"]

1. d4 {[%emt 0:00:00]} Nf6 {[%emt 0:00:06]} 2. Nf3 {[%emt 0:00:00]} e6 {[%emt 0:00:10]} 3. Bg5 {[%emt 0:00:05]} h6 {[%emt 0:00:08]} 4. Bh4 {[%emt 0:00:52]} c5 {[%emt 0:00:26]} 5. e3 {[%emt 0:04:01]} b6 {[%emt 0:00:54]} 6. Nbd2 {[%emt 0:01:23]} Bb7 {[%emt 0:00:20]} 7. c3 {[%emt 0:00:29]} Be7 {[%emt 0:00:48]} 8. Bd3 {[%emt 0:00:30]} cxd4 {[%emt 0:00:11]} 9. cxd4 {[%emt 0:04:02]} Nc6 {[%emt 0:03:25]} 10. O-O {[%emt 0:00:52]} O-O {[%emt 0:12:39]} 11. a3 {[%emt 0:00:19]} d5 {[%emt 0:05:17]} 12. Qb1 {[%emt 0:03:56]} Nd7 {[%emt 0:07:54]} 13. Bg3 {[%emt 0:02:06]} f5 {[%emt 0:02:34]} 14. Rc1 {[%emt 0:04:01]} Rc8 {[%emt 0:02:29]} 15. b4 {[%emt 0:04:23]} g5 {[%emt 0:07:35]} 16. Bb5 {[%emt 0:05:35]} a6 {[%emt 0:18:17]} 17. Bxc6 {[%emt 0:07:55]} Rxc6 {[%emt 0:00:05]} 18. Qd3 {[%emt 0:02:53]} Qa8 {[%emt 0:01:27]} 19. Ne5 {[%emt 0:02:41]} Nxe5 {[%emt 0:00:06]} 20. Bxe5 {[%emt 0:00:18]} Rfc8 {[%emt 0:00:29]} 21. Rd1 {[%emt 0:01:55]} Rc3 {[%emt 0:03:24]} 22. Qe2 {[%emt 0:01:11]} g4 {[%emt 0:00:34]} 23. h3 {[%emt 0:10:02]} h5 {[%emt 0:15:30]} 24. hxg4 {[%emt 0:02:53]} hxg4 {[%emt 0:00:13]} 25. f3 {[%emt 0:00:55]} Bc6 {[%emt 0:04:14]} 26. fxg4 {[%emt 0:02:12]} Bb5 {[%emt 0:02:36]} 27. Qf3 {[%emt 0:02:51]} Rf8 {[%emt 0:00:56]} 28. gxf5 {[%emt 0:10:17]} Rxf5 {[%emt 0:00:02]} 29. Qg4+ {[%emt 0:03:03]} Kf7 {[%emt 0:00:36]} 30. Qg7+ {[%emt 0:03:31]} Ke8 {[%emt 0:00:01]} 31. a4 {[%emt 0:05:55]} Bd3 {[%emt 0:02:24]} 32. Nf3 {[%emt 0:03:20]} Qc8 {[%emt 0:02:29]} 33. Bf4 {[%emt 0:03:36]} Be4 {[%emt 0:01:38]} 34. Qh8+ {[%emt 0:04:49]} Rf8 {[%emt 0:02:19]} 35. Qh5+ {[%emt 0:00:18]} Kd8 {[%emt 0:00:41]} 36. Ng5 {[%emt 0:01:02]} Bc2 {[%emt 0:04:42]} 37. Rf1 {[%emt 0:01:33]} Bd3 {[%emt 0:00:25]} 38. Nf7+ {[%emt 0:01:49]} Rxf7 {[%emt 0:00:37]} 39. Qxf7 {[%emt 0:00:02]} Bxf1 {[%emt 0:00:06]} 40. Rxf1 {[%emt 0:00:00]} Rc1 {[%emt 0:01:01]} 41. Rxc1 {[%emt 0:02:28]} Qxc1+ {[%emt 0:00:42]} 42. Kh2 {[%emt 0:00:36]} Qe1 {[%emt 0:01:59]} 43. Qxe6 {[%emt 0:13:04]} Qh4+ {[%emt 0:00:15]} 44. Qh3 {[%emt 0:00:01]} Qxh3+ {[%emt 0:00:08]} 45. gxh3 {[%emt 0:01:13]} Bxb4 {[%emt 0:00:10]} 46. h4 {[%emt 0:01:15]} b5 {[%emt 0:08:39]} 47. axb5 {[%emt 0:00:56]} axb5 {[%emt 0:00:02]} 48. Kg2 {[%emt 0:01:13]} Bc3 {[%emt 0:08:17]} 49. Kf3 {[%emt 0:05:11]} b4 {[%emt 0:00:18]} 50. Ke2 {[%emt 0:01:19]} b3 {[%emt 0:00:04]} 51. Kd3 {[%emt 0:02:33]} Be1 {[%emt 0:00:21]} 52. Bd6 {[%emt 0:04:38]} Bxh4 {[%emt 0:00:45]} 53. Kc3 {[%emt 0:00:31]} Kd7 {[%emt 0:00:11]} 54. Bf4 {[%emt 0:00:23]} Kc6 {[%emt 0:00:05]} 55. Kxb3 {[%emt 0:00:07]} Be7 {[%emt 0:00:42]} 56. Kc3 {[%emt 0:01:35]} Bd8 {[%emt 0:00:15]} 57. Kd3 {[%emt 0:00:10]} Kd7 {[%emt 0:00:10]} 58. e4 {[%emt 0:00:08]} dxe4+ {[%emt 0:00:05]} 59. Kxe4 {[%emt 0:00:05]} Bb6 {[%emt 0:00:08]} 60. d5 {[%emt 0:00:05]} Bc5 {[%emt 0:00:13]} 1/2-1/2